lending/lending_fUSD_20250815
["ID","MTS","AMOUNT","RATE_DAILY","PERIOD"]
[379243282,1755220238646,-157.0,0.000235,4]
[379243283,1755220238657,-157.0,0.000235,5]
[379243286,1755220238667,-157.0,0.000235,4]
[379243287,1755220238676,-700.0,0.000235,8]
[379243290,1755220238686,-150.0,0.0002352,2]
[379243292,1755220238696,-7850.63620482,0.0002356,2]
[379243293,1755220238705,-1993.9,0.00023562,7]
[379243296,1755220238715,-150.0,0.00023588,2]
[379243297,1755220238724,-1400.0,0.000236,8]
[379243299,1755220238737,-1000.0,0.00023618,2]
[379243301,1755220238747,-150.0,0.00023637,2]
[379243303,1755220238756,-300.0,0.0002366,2]
[379243305,1755220238765,-3000.0,0.0002366,2]
[379243307,1755220238774,-200.0,0.0002366,2]
[379243310,1755220238783,-200.0,0.0002366,2]
[379243311,1755220238792,-200.0,0.0002366,2]
[379243313,1755220238802,-1500.0,0.0002366,2]
[379243316,1755220238811,-200.0,0.0002366,2]
[379243317,1755220238820,-500.0,0.0002366,2]
[379243319,1755220238830,-277.35679052,0.0002366,2]
[379243321,1755220238839,-200.0,0.0002366,2]
[379243323,1755220238847,-500.0,0.0002366,2]
[379243325,1755220238856,-200.0,0.0002366,2]
[379243327,1755220238865,-500.0,0.0002366,2]
[379243329,1755220238874,-200.0,0.0002366,2]
[379243331,1755220238883,-3000.0,0.0002366,2]
[379243333,1755220238892,-500.0,0.0002366,2]
[379243335,1755220238902,-3000.0,0.0002366,2]
[379243337,1755220238912,-3000.0,0.0002366,2]
[379243339,1755220238931,-500.0,0.0002366,2]
[379243341,1755220238942,-200.0,0.0002366,2]
[379243343,1755220238951,-3000.0,0.0002366,2]
[379243345,1755220238961,-500.0,0.0002366,2]
[379243347,1755220238970,-3000.0,0.0002366,2]
[379243349,1755220238979,-3000.0,0.0002366,2]
[379243351,1755220238988,-200.0,0.0002366,2]
[379243353,1755220238997,-3000.0,0.0002366,2]
[379243355,1755220239007,-3000.0,0.0002366,2]
[379243357,1755220239016,-200.0,0.0002366,2]
[379243359,1755220239025,-1289.35908175,0.0002366,2]
[379243361,1755220239035,-3000.0,0.0002366,2]
[379243363,1755220239044,-200.0,0.0002366,2]
[379243365,1755220239054,-500.0,0.0002366,2]
[379243367,1755220239063,-3000.0,0.0002366,2]
[379243369,1755220239073,-9274.81107495,0.0002366,2]
[379243371,1755220239082,-500.0,0.0002366,2]
[379243373,1755220239091,-3000.0,0.0002366,2]
[379243375,1755220239101,-200.0,0.0002366,2]
[379243377,1755220239110,-3000.0,0.0002366,2]
[379243379,1755220239120,-500.0,0.0002366,2]
[379243381,1755220239130,-200.0,0.0002366,2]
[379243383,1755220239139,-2005.36381846,0.0002366,2]
[379243385,1755220239148,-200.0,0.0002366,2]
[379243387,1755220239157,-500.0,0.0002366,2]
[379243389,1755220239167,-500.0,0.0002366,2]
[379243391,1755220239176,-250.0,0.0002366,2]
[379243393,1755220239185,-200.0,0.0002366,2]
[379243395,1755220239194,-160.0,0.0002366,2]
[379243397,1755220239203,-250.0,0.0002366,2]
[379243399,1755220239213,-500.0,0.0002366,2]
[379243401,1755220239223,-200.0,0.0002366,2]
[379243403,1755220239232,-250.0,0.0002366,2]
[379243405,1755220239241,-200.0,0.0002366,2]
[379243407,1755220239250,-250.0,0.0002366,2]
[379243409,1755220239259,-200.0,0.0002366,2]
[379243411,1755220239269,-250.0,0.0002366,2]
[379243413,1755220239278,-200.0,0.0002366,2]
[379243415,1755220239288,-250.0,0.0002366,2]
[379243417,1755220239297,-200.0,0.0002366,2]
[379243419,1755220239307,-250.0,0.0002366,2]
[379243421,1755220239316,-250.0,0.0002366,2]
[379243423,1755220239325,-250.0,0.0002366,2]
[379243425,1755220239334,-250.0,0.0002366,2]
[379243427,1755220239344,-250.0,0.0002366,2]
[379243429,1755220239353,-151.0,0.0002366,2]
[379243431,1755220239362,-600.0,0.0002366,2]
[379243433,1755220239371,-1000.0,0.0002366,2]
[379243435,1755220239381,-1000.0,0.0002366,2]
[379243437,1755220239390,-1000.0,0.0002366,2]
[379243439,1755220239400,-305.28886973,0.0002366,2]
[379243441,1755220239410,-151.0,0.0002366,2]
[379243443,1755220239420,-151.0,0.0002366,2]
[379243445,1755220239429,-151.0,0.0002366,2]
[379243447,1755220239439,-151.0,0.0002366,2]
[379243449,1755220239450,-151.0,0.0002366,2]
[379243451,1755220239459,-151.0,0.0002366,2]
[379243453,1755220239468,-151.0,0.0002366,2]
[379243455,1755220239479,-151.0,0.0002366,2]
[379243457,1755220239488,-200.76036667,0.0002366,2]
[379243459,1755220239498,-151.0,0.0002366,2]
[379243461,1755220239507,-151.0,0.0002366,2]
[379243463,1755220239517,-151.0,0.0002366,2]
[379243465,1755220239526,-304.0,0.0002366,2]
[379243467,1755220239536,-183.29524692,0.0002366,2]
[379243468,1755220239545,-300.0,0.0002366,2]
[379243469,1755220239555,-300.0,0.0002366,2]
[379243470,1755220239564,-500.0,0.0002366,2]
[379243471,1755220239576,-300.0,0.0002366,2]
[379243472,1755220239585,-500.0,0.0002366,2]
[379243473,1755220239594,-300.0,0.0002366,2]
[379243474,1755220239603,-500.0,0.0002366,2]
[379243475,1755220239614,-282.56232004,0.0002366,2]
[379243476,1755220239623,-500.0,0.0002366,2]
[379243477,1755220239632,-500.0,0.0002366,2]
[379243479,1755220239641,-500.0,0.0002366,2]
[379243480,1755220239651,-500.0,0.0002366,2]
[379243481,1755220239660,-500.0,0.0002366,2]
[379243482,1755220239670,-500.0,0.0002366,2]
[379243483,1755220239679,-500.0,0.0002366,2]
[379243484,1755220239689,-500.0,0.0002366,2]
[379243485,1755220239698,-500.0,0.0002366,2]
[379243486,1755220239708,-500.0,0.0002366,2]
[379243487,1755220239719,-500.0,0.0002366,2]
[379243488,1755220239728,-500.0,0.0002366,2]
[379243489,1755220239737,-500.0,0.0002366,2]
[379243490,1755220239748,-500.0,0.0002366,2]
[379243491,1755220239757,-500.0,0.0002366,2]
[379243492,1755220239766,-500.0,0.0002366,2]
[379243493,1755220239776,-500.0,0.0002366,2]
[379243494,1755220239786,-500.0,0.0002366,2]
[379243495,1755220239795,-500.0,0.0002366,2]
[379243496,1755220239804,-500.0,0.0002366,2]
[379243497,1755220239814,-500.0,0.0002366,2]
[379243498,1755220239824,-500.0,0.0002366,2]
[379243499,1755220239834,-151.0,0.0002366,2]
[379243500,1755220239843,-500.0,0.0002366,2]
[379243501,1755220239853,-500.0,0.0002366,2]
[379243502,1755220239862,-151.0,0.0002366,2]
[379243503,1755220239872,-500.0,0.0002366,2]
[379243504,1755220239883,-500.0,0.0002366,2]
[379243505,1755220239892,-500.0,0.0002366,2]
[379243506,1755220239902,-500.0,0.0002366,2]
[379243507,1755220239911,-500.0,0.0002366,2]
[379243508,1755220239920,-500.0,0.0002366,2]
[379243509,1755220239930,-7850.63620475,0.00023671,2]
[379243510,1755220239939,-150.0,0.00023679,2]
[379243511,1755220239950,-150.0,0.00023699,2]
[379243512,1755220239959,-2100.0,0.000237,8]
[379243513,1755220239969,-9617.97908473,0.00023715,2]
[379243514,1755220239978,-408.02,0.00023726,2]
[379243515,1755220239987,-1000.0,0.00023762,2]
[379243516,1755220239997,-4569.88595369,0.0002377,2]
[379243517,1755220240006,-7850.63620475,0.00023782,2]
[379243518,1755220240016,-2900.0,0.000238,8]
[379243519,1755220240025,-567.0,0.00023823,2]
[379243520,1755220240035,-150.0,0.00023892,2]
[379243521,1755220240044,-7850.63620475,0.00023892,2]
[379243522,1755220240053,-3600.0,0.000239,8]
[379243524,1755220240062,-477.6402986,0.000239,2]
[379243526,1755220240071,-7873.73187918,0.00023903,2]
[379243527,1755220240081,-160.3397033,0.00023903,2]
[379243528,1755220240090,-128588.35439945,0.00023914,2]
[379243529,1755220240099,-468.3,0.00023918,2]
[379243530,1755220240109,-19244.44801878,0.00023919,2]
[379243531,1755220240118,-150.0,0.00023928,2]
[379243532,1755220240127,-150.0,0.00023932,2]
[379243533,1755220240137,-22017.22335179,0.00023938,2]
[379243534,1755220240147,-2512.69546029,0.0002394,2]
[379243535,1755220240157,-19244.44801878,0.00023943,2]
[379243536,1755220240166,-128588.35439945,0.00023948,2]
[379243537,1755220240179,-150.0,0.00023952,2]
[379243538,1755220240192,-19244.44801878,0.00023954,2]
[379243539,1755220240202,-1000.0,0.00023954,2]
[379243540,1755220240211,-150.0,0.00023957,2]
[379243541,1755220240222,-1227.9337491,0.00023957,2]
[379243542,1755220240232,-22017.22335179,0.0002396,2]
[379243543,1755220240242,-19244.44801878,0.00023961,2]
[379243544,1755220240252,-22017.22335179,0.00023964,2]
[379243545,1755220240262,-19244.44801878,0.00023964,2]
[379243546,1755220240271,-63686.4423465,0.0002397,2]
[379243547,1755220240281,-150.0,0.0002397,2]
[379243548,1755220240291,-150.0,0.0002397,2]
[379243549,1755220240301,-150.0,0.0002397,2]
[379243550,1755220240310,-150.0,0.0002397,2]
[379243551,1755220240320,-150.0,0.0002397,2]
[379243552,1755220240330,-150.0,0.0002397,2]
[379243553,1755220240339,-150.0,0.0002397,2]
[379243554,1755220240349,-158.41,0.00023973,2]
[379243555,1755220240358,-567.0,0.00023974,2]
[379243556,1755220240367,-7873.73187911,0.00023976,2]
[379243557,1755220240376,-150.0,0.00023981,2]
[379243558,1755220240386,-192.53148687,0.0002399,2]
[379243559,1755220240396,-63686.4423465,0.00023998,2]
[379243560,1755220240405,-2688763.08423933,0.00023999,2]
[379243561,1755220240415,-26751.51039971,0.00023999,2]
[379243562,1755220240424,-33533.17941416,0.00024,8]
[379243563,1755220240433,-157.0,0.00024,6]
[379243564,1755220240444,-157.0,0.00024,6]
[379243565,1755220240453,-157.0,0.00024,6]
[379243566,1755220240462,-164.0,0.00024,6]
[379243567,1755220240472,-22017.22335179,0.00024003,2]
[379243568,1755220240481,-150.0,0.00024003,2]
[379243569,1755220240490,-7850.63620475,0.00024003,2]
[379243570,1755220240500,-1227.9337491,0.00024014,2]
[379243571,1755220240509,-160.33970326,0.00024015,2]
[379243572,1755220240518,-22017.22335179,0.00024024,2]
[379243573,1755220240527,-1000.0,0.00024025,2]
[379243574,1755220240537,-150.0,0.00024028,2]
[379243575,1755220240546,-128588.35439945,0.00024028,2]
[379243576,1755220240556,-19244.44801878,0.00024028,2]
[379243577,1755220240567,-63686.4423465,0.0002403,2]
[379243578,1755220240579,-150.0,0.00024032,2]
[379243579,1755220240589,-63686.4423465,0.00024046,2]
[379243580,1755220240599,-150.0,0.00024047,2]
[379243581,1755220240608,-7873.73187911,0.00024048,2]
[379243582,1755220240618,-150.0,0.00024049,2]
[379243583,1755220240627,-19244.44801878,0.0002405,2]
[379243584,1755220240636,-300.0,0.00024055,2]
[379243585,1755220240647,-63686.4423465,0.00024055,2]
[379243586,1755220240656,-128588.35439945,0.00024059,2]
[379243587,1755220240666,-1227.9337491,0.00024063,2]
[379243588,1755220240675,-22017.22335179,0.00024067,2]
[379243589,1755220240684,-1227.9337491,0.00024069,2]
[379243590,1755220240694,-128588.35439945,0.00024071,2]
[379243591,1755220240703,-63686.4423465,0.00024072,2]
[379243592,1755220240712,-63686.4423465,0.00024075,2]
[379243593,1755220240722,-150.0,0.00024079,2]
[379243594,1755220240731,-22017.22335179,0.0002408,2]
[379243595,1755220240740,-1227.9337491,0.00024083,2]
[379243596,1755220240749,-1227.9337491,0.00024085,2]
[379243597,1755220240758,-1227.9337491,0.00024085,2]
[379243598,1755220240767,-128588.35439945,0.00024088,2]
[379243599,1755220240777,-420.0,0.00024092,2]
[379243600,1755220240786,-128588.35439945,0.00024094,2]
[379243601,1755220240796,-150.0,0.00024106,2]
[379243602,1755220240805,-156.0,0.00024108,3]
[379243603,1755220240815,-7850.63620475,0.00024114,2]
[379243604,1755220240824,-161.84,0.00024119,2]
[379243605,1755220240833,-7873.73187911,0.00024121,2]
[379243606,1755220240842,-185.22,0.00024124,2]
[379243607,1755220240852,-160.33970326,0.00024127,2]
[379243608,1755220240861,-150.0,0.00024129,2]
[379243609,1755220240871,-819.6026422,0.0002414,2]
[379243610,1755220240880,-150.0,0.00024145,2]
[379243611,1755220240889,-150.0,0.0002415,2]
[379243612,1755220240899,-567.0,0.0002415,2]
[379243613,1755220240909,-215.0,0.00024164,7]
[379243614,1755220240918,-1000.0,0.00024186,2]
[379243615,1755220240927,-7873.73187911,0.00024194,2]
[379243616,1755220240937,-48627.68,0.000242,14]
[379243617,1755220240946,-23818.86,0.000242,14]
[379243618,1755220240955,-1151.0,0.00024205,2]
[379243619,1755220240965,-151.0,0.00024208,2]
[379243620,1755220240974,-600.0,0.00024208,2]
[379243621,1755220240983,-1000.0,0.00024219,2]
[379243622,1755220240992,-7850.63620475,0.00024225,2]
[379243623,1755220241001,-150.0,0.00024231,2]
[379243624,1755220241010,-160.33970326,0.00024239,2]
[379243625,1755220241020,-7000.0,0.0002425,2]
[379243626,1755220241029,-173.4,0.0002426,2]
[379243627,1755220241038,-173.4,0.0002426,2]
[379243628,1755220241047,-7000.0,0.0002426,2]
[379243629,1755220241056,-150.0,0.00024265,2]
[379243630,1755220241066,-7873.73187911,0.00024266,2]
[379243631,1755220241075,-7000.0,0.0002432,2]
[379243632,1755220241084,-150.0,0.00024325,2]
[379243633,1755220241094,-7850.63620475,0.00024335,2]
[379243634,1755220241103,-7873.73187911,0.00024339,2]
[379243635,1755220241113,-160.33970326,0.00024352,2]
[379243636,1755220241122,-150.0,0.00024355,2]
[379243637,1755220241131,-150.0,0.00024363,2]
[379243638,1755220241141,-625.36,0.00024364,2]
[379243639,1755220241150,-150.0,0.00024373,2]
[379243640,1755220241160,-7000.0,0.0002438,2]
[379243641,1755220241169,-158.46943858,0.00024385,2]
[379243642,1755220241178,-890.30152158,0.000244,2]
[379243643,1755220241188,-1000.0,0.000244,2]
[379243644,1755220241198,-29880.76418985,0.000244,2]
[379243645,1755220241207,-7873.73187911,0.00024412,2]
[379243646,1755220241218,-150.0,0.00024435,2]
[379243647,1755220241228,-1594.32,0.00024437,2]
[379243648,1755220241238,-797.99,0.00024437,2]
[379243649,1755220241249,-797.99,0.00024437,2]
[379243650,1755220241259,-797.99,0.00024437,2]
[379243651,1755220241268,-79878.04443006,0.0002444,2]
[379243652,1755220241278,-7850.63620475,0.00024446,2]
[379243653,1755220241287,-158.46943858,0.00024453,2]
[379243654,1755220241297,-150.0,0.0002446,2]
[379243655,1755220241306,-319.59988735,0.00024462,2]
[379243656,1755220241316,-160.33970326,0.00024464,2]
[379243657,1755220241326,-407.33318976,0.00024464,2]
[379243658,1755220241335,-495.06649217,0.00024465,2]
[379243659,1755220241345,-1251.0,0.00024466,2]
[379243660,1755220241355,-2283.0,0.00024466,2]
[379243661,1755220241364,-582.79979459,0.00024467,2]
[379243662,1755220241374,-670.533097,0.00024468,2]
[379243663,1755220241384,-758.26639941,0.0002447,2]
[379243664,1755220241394,-845.99970182,0.00024472,2]
[379243665,1755220241404,-500.0,0.00024473,2]
[379243666,1755220241414,-500.0,0.00024473,2]
[379243667,1755220241423,-500.0,0.00024473,2]
[379243668,1755220241433,-500.0,0.00024473,2]
[379243669,1755220241442,-500.0,0.00024473,2]
[379243670,1755220241452,-500.0,0.00024473,2]
[379243671,1755220241462,-500.0,0.00024473,2]
[379243672,1755220241472,-500.0,0.00024473,2]
[379243673,1755220241482,-500.0,0.00024473,2]
[379243674,1755220241493,-500.0,0.00024473,2]
[379243675,1755220241502,-500.0,0.00024473,2]
[379243676,1755220241511,-572.49417322,0.00024473,2]
[379243677,1755220241520,-502.9880039,0.00024473,2]
[379243678,1755220241530,-500.8007277,0.00024473,2]
[379243679,1755220241539,-500.0,0.00024473,2]
[379243680,1755220241549,-169.08813239,0.00024473,2]
[379243681,1755220241558,-500.0,0.00024473,2]
[379243682,1755220241568,-169.06141551,0.00024473,2]
[379243683,1755220241581,-500.0,0.00024473,2]
[379243684,1755220241590,-500.0,0.00024473,2]
[379243685,1755220241600,-500.0,0.00024473,2]
[379243686,1755220241610,-500.0,0.00024473,2]
[379243687,1755220241620,-500.0,0.00024473,2]
[379243688,1755220241629,-500.0,0.00024473,2]
[379243689,1755220241639,-269.96187325,0.00024473,2]
[379243690,1755220241650,-500.0,0.00024473,2]
[379243691,1755220241660,-500.0,0.00024473,2]
[379243692,1755220241669,-500.0,0.00024473,2]
[379243693,1755220241679,-500.0,0.00024473,2]
[379243694,1755220241688,-500.0,0.00024473,2]
[379243695,1755220241699,-500.0,0.00024473,2]
[379243696,1755220241708,-500.0,0.00024473,2]
[379243697,1755220241718,-500.0,0.00024473,2]
[379243698,1755220241727,-308.64536307,0.00024473,2]
[379243699,1755220241736,-159.26595556,0.00024473,2]
[379243700,1755220241746,-500.0,0.00024473,2]
[379243701,1755220241755,-504.53149598,0.00024473,2]
[379243702,1755220241764,-500.0,0.00024473,2]
[379243703,1755220241774,-500.0,0.00024473,2]
[379243704,1755220241783,-500.0,0.00024473,2]
[379243705,1755220241793,-500.0,0.00024473,2]
[379243706,1755220241803,-500.0,0.00024473,2]
[379243707,1755220241812,-500.0,0.00024473,2]
[379243708,1755220241822,-500.0,0.00024473,2]
[379243709,1755220241832,-500.0,0.00024473,2]
[379243710,1755220241842,-500.0,0.00024473,2]
[379243711,1755220241852,-500.0,0.00024473,2]
[379243712,1755220241862,-933.73300423,0.00024473,2]
[379243713,1755220241871,-1021.46630663,0.00024475,2]
[379243714,1755220241881,-350.0,0.00024476,2]
[379243715,1755220241890,-151.0,0.00024476,2]
[379243716,1755220241900,-150.0,0.00024477,2]
[379243717,1755220241909,-7873.73187911,0.00024484,2]
[379243718,1755220241919,-100845.3827446,0.00024485,2]
[379243719,1755220241928,-374429.0929819,0.00024485,2]
[379243720,1755220241938,-62935.4203852,0.00024485,2]
[379243721,1755220241956,-188930.0748986,0.00024485,2]
[379243722,1755220241969,-22009.961412,0.00024485,2]
[379243723,1755220241980,-366.483124,0.00024485,7]
[379243724,1755220242374,-366.483124,0.00024485,7]
[379243725,1755220242384,-151.0,0.00024485,7]
[379243726,1755220242394,-292.1839895,0.00024485,2]
[379243727,1755220242403,-289.448753,0.00024485,7]
[379243728,1755220242413,-289.448753,0.00024485,7]
[379243729,1755220242423,-2229.548676,0.00024485,7]
[379243730,1755220242432,-2229.548676,0.00024485,7]
[379243731,1755220242442,-151.0,0.00024485,7]
[379243732,1755220242452,-151.0,0.00024485,7]
[379243733,1755220242462,-150.0,0.00024487,2]
[379243734,1755220242471,-160.23620108,0.0002449,2]
[379243735,1755220242481,-1074.80287233,0.00024499,10]
[379243736,1755220242491,-1275.1525311,0.00024499,2]
[379243737,1755220242500,-13435.9853379,0.00024499,2]
[379243738,1755220242510,-287916.08765836,0.000245,2]
[379243739,1755220242522,-30594.95981012,0.000245,2]
[379243740,1755220242534,-59133.45366443,0.000245,2]
[379243741,1755220242544,-3409.0,0.000245,2]
[379243742,1755220242553,-366.483124,0.000245,7]
[379243743,1755220242563,-366.483124,0.000245,7]
[379243744,1755220242577,-155.488257,0.000245,7]
[379243745,1755220242587,-151.0,0.000245,2]
[379243746,1755220242596,-297.580693,0.000245,7]
[379243747,1755220242606,-297.580693,0.000245,7]
[379243748,1755220242617,-151.0,0.000245,7]
[379243749,1755220242626,-151.0,0.000245,7]
[379243750,1755220242637,-7000.0,0.000245,2]
[379243751,1755220242650,-7000.0,0.000245,2]
[379243752,1755220242660,-289.448753,0.000245,7]
[379243753,1755220242670,-289.448753,0.000245,7]
[379243754,1755220242679,-2229.548676,0.000245,7]
[379243756,1755220242688,-2229.548676,0.000245,7]
[379243757,1755220242699,-2376.0,0.000245,2]
[379243758,1755220242709,-151.0,0.000245,7]
[379243759,1755220242718,-151.0,0.000245,7]
[379243760,1755220242728,-890.30152158,0.00024502,2]
[379243761,1755220242738,-150.0,0.00024519,2]
[379243762,1755220242748,-2500.0,0.00024519,2]
[379243763,1755220242758,-2500.0,0.00024519,2]
[379243764,1755220242768,-538.69,0.0002452,2]
[379243765,1755220242778,-158.46943858,0.0002452,2]
[379243766,1755220242788,-168.0,0.00024523,2]
[379243767,1755220242800,-253.85,0.00024527,2]
[379243768,1755220242809,-150.0,0.00024529,2]
[379243769,1755220242819,-150.0,0.00024543,2]
[379243770,1755220242828,-567.0,0.00024547,2]
[379243771,1755220242838,-152.0,0.00024549,18]
[379243772,1755220242848,-3615.0,0.00024554,2]
[379243773,1755220242858,-7850.63620475,0.00024557,2]
[379243774,1755220242868,-632.33067477,0.00024557,4]
[379243775,1755220242878,-1077.66327664,0.00024557,2]
[379243776,1755220242887,-7873.73187911,0.00024557,2]
[379243777,1755220242896,-1918.07381474,0.00024557,2]
[379243778,1755220242906,-168.0,0.00024559,2]
[379243779,1755220242915,-150.0,0.00024559,2]
[379243780,1755220242925,-160.33970326,0.00024576,2]
[379243781,1755220242934,-1000.0,0.00024583,2]
[379243782,1755220242944,-158.46943858,0.00024588,2]
[379243783,1755220242954,-150.0,0.00024596,2]
[379243784,1755220242964,-16716.0,0.000246,2]
[379243785,1755220242974,-700.0,0.000246,8]
[379243786,1755220242983,-4751.94,0.000246,2]
[379243787,1755220242993,-1000.0,0.000246,2]
[379243788,1755220243002,-890.30152158,0.00024603,2]
[379243789,1755220243012,-408.02,0.00024616,2]
[379243790,1755220243022,-150.0,0.00024632,2]
[379243791,1755220243031,-314.49898664,0.00024634,2]
[379243792,1755220243042,-43187.27014249,0.00024635,2]
[379243793,1755220243051,-400.83204179,0.00024636,2]
[379243794,1755220243060,-487.16509695,0.00024637,2]
[379243795,1755220243070,-573.49815211,0.00024639,2]
[379243796,1755220243079,-659.83120726,0.0002464,2]
[379243797,1755220243089,-746.16426242,0.00024642,2]
[379243798,1755220243098,-832.49731757,0.00024644,2]
[379243799,1755220243108,-918.83037273,0.00024645,2]
[379243800,1755220243118,-1005.16342788,0.00024647,2]
[379243801,1755220243127,-150.0,0.00024647,2]
[379243802,1755220243136,-196.47914591,0.00024652,2]
[379243803,1755220243145,-158.46943858,0.00024655,2]
[379243804,1755220243155,-400.0,0.00024657,2]
[379243806,1755220243164,-400.0,0.00024657,2]
[379243807,1755220243174,-400.0,0.00024657,2]
[379243810,1755220243184,-400.0,0.00024657,2]
[379243812,1755220243193,-400.0,0.00024657,2]
[379243815,1755220243203,-400.0,0.00024657,2]
[379243816,1755220243213,-400.0,0.00024657,2]
[379243818,1755220243223,-500.0,0.00024657,2]
[379243819,1755220243232,-500.0,0.00024657,2]
[379243821,1755220243242,-500.0,0.00024657,2]
[379243822,1755220243251,-500.0,0.00024657,2]
[379243823,1755220243261,-400.0,0.00024657,2]
[379243824,1755220243270,-400.0,0.00024657,2]
[379243825,1755220243279,-400.0,0.00024657,2]
[379243826,1755220243289,-452.79717679,0.00024657,2]
[379243827,1755220243299,-400.0,0.00024657,2]
[379243828,1755220243308,-400.0,0.00024657,2]
[379243829,1755220243317,-400.0,0.00024657,2]
[379243830,1755220243327,-400.0,0.00024657,2]
[379243831,1755220243336,-400.0,0.00024657,2]
[379243832,1755220243345,-400.0,0.00024657,2]
[379243833,1755220243355,-400.0,0.00024657,2]
[379243834,1755220243364,-400.0,0.00024657,2]
[379243835,1755220243374,-400.0,0.00024657,2]
[379243836,1755220243383,-400.0,0.00024657,2]
[379243837,1755220243393,-400.0,0.00024657,2]
[379243838,1755220243403,-400.0,0.00024657,2]
[379243839,1755220243413,-400.0,0.00024657,2]
[379243840,1755220243422,-400.0,0.00024657,2]
[379243841,1755220243432,-400.0,0.00024657,2]
[379243842,1755220243442,-400.0,0.00024657,2]
[379243843,1755220243452,-400.0,0.00024657,2]
[379243844,1755220243462,-829.53,0.00024657,2]
[379243845,1755220243471,-400.0,0.00024657,2]
[379243846,1755220243482,-912.01,0.00024657,2]
[379243847,1755220243494,-857.65,0.00024657,2]
[379243848,1755220243504,-808.94,0.00024657,2]
[379243849,1755220243513,-400.0,0.00024657,2]
[379243850,1755220243523,-1995.55,0.00024657,2]
[379243851,1755220243533,-1561.26,0.00024657,2]
[379243852,1755220243543,-1979.59,0.00024657,2]
[379243853,1755220243552,-442.78,0.00024657,2]
[379243854,1755220243562,-400.0,0.00024657,2]
[379243855,1755220243574,-457.42,0.00024657,2]
[379243856,1755220243583,-3567.07,0.00024657,2]
[379243857,1755220243592,-500.0,0.00024657,2]
[379243858,1755220243602,-3567.07,0.00024657,2]
[379243859,1755220243611,-500.0,0.00024657,2]
[379243860,1755220243621,-500.0,0.00024657,2]
[379243861,1755220243632,-500.0,0.00024657,2]
[379243862,1755220243643,-501.39,0.00024657,2]
[379243863,1755220243656,-686.49,0.00024657,2]
[379243864,1755220243667,-678.44,0.00024657,2]
[379243865,1755220243678,-4010.208935,0.00024657,2]
[379243866,1755220243688,-1497.34,0.00024657,2]
[379243867,1755220243699,-400.0,0.00024657,2]
[379243868,1755220243709,-1061.52,0.00024657,2]
[379243869,1755220243719,-5099.000859,0.00024657,7]
[379243870,1755220243730,-5099.000859,0.00024657,7]
[379243871,1755220243740,-486.08,0.00024657,2]
[379243872,1755220243750,-5099.000859,0.00024657,7]
[379243873,1755220243761,-5099.000859,0.00024657,7]
[379243874,1755220243770,-566.25,0.00024657,2]
[379243875,1755220243780,-400.0,0.00024657,2]
[379243876,1755220243789,-400.0,0.00024657,2]
[379243877,1755220243798,-400.0,0.00024657,2]
[379243878,1755220243808,-284.793831,0.00024657,2]
[379243879,1755220243819,-1450.46,0.00024657,2]
[379243880,1755220243831,-214.845655,0.00024657,2]
[379243881,1755220243841,-505.14,0.00024657,2]
[379243882,1755220243851,-2903.99288,0.00024657,2]
[379243883,1755220243862,-4310.183411,0.00024657,2]
[379243884,1755220243872,-462.9,0.00024657,2]
[379243885,1755220243884,-549.94,0.00024657,2]